bitfinex/quotes_SOLUSD_20251207
["timestamp","ask_amount","ask_price","bid_price","bid_amount"]
[1765143620299,8.26,134.58,134.56,11.74541663]
[1765143621411,0.72,134.57,134.52,0.71]
[1765143621720,4.38378762,134.57,134.52,0.71]
[1765143622297,0.72,134.56,134.52,8.14380282]
[1765143622515,8.24,134.55,134.52,8.14380282]
[1765143622710,8.24,134.55,134.52,7.43380282]
[1765143622913,0.72,134.54,134.52,7.43380282]
[1765143623221,17.2,134.55,134.52,7.43380282]
[1765143625618,17.2,134.55,134.52,8.14380282]
[1765143625818,17.2,134.55,134.52,7.43380282]
[1765143626801,17.2,134.55,134.52,7.06210282]
[1765143627417,17.2,134.55,134.52,7.77210282]
[1765143629717,17.2,134.55,134.52,0.71]
[1765143630210,17.2,134.55,134.51,8.14439149]
[1765143631225,17.2,134.55,134.51,7.43439149]
[1765143631442,17.2,134.55,134.52,0.71]
[1765143631923,4.38378762,134.54,134.49,0.71]
[1765143632120,0.72,134.54,134.49,4.37378762]
[1765143632426,19.29631148,134.54,134.49,4.37378762]
[1765143632609,19.29631148,134.54,134.5,0.71]
[1765143632812,0.72,134.54,134.5,0.71]
[1765143633000,8.15273811,134.54,134.5,8.14492497]
[1765143633195,18.5895314,134.53,134.49,7.43544704]
[1765143633420,8.24,134.52,134.49,8.14544704]
[1765143633726,8.96,134.52,134.49,8.14544704]
[1765143634100,17.92,134.52,134.49,7.43544704]
[1765143634433,17.92,134.52,134.49,8.14544704]
[1765143634602,17.2,134.52,134.49,8.14544704]
[1765143635927,17.92,134.52,134.49,8.14544704]
[1765143637396,25.35393798,134.52,134.49,0.71]
[1765143637602,0.72,134.51,134.48,8.14591386]
[1765143637801,19.31235862,134.51,134.48,8.14591386]
[1765143638018,18.59235862,134.51,134.48,8.14591386]
[1765143638626,18.59235862,134.51,134.49,0.71]
[1765143639927,18.59235862,134.51,134.48,8.14591386]
[1765143641329,18.59235862,134.51,134.49,0.71]
[1765143641717,8.24,134.5,134.49,0.71]
[1765143642609,8.96,134.5,134.47,11.81039057]
[1765143642809,8.96,134.5,134.47,11.10039057]
[1765143642810,8.24,134.5,134.47,11.10039057]
[1765143643010,8.24,134.5,134.48,0.71]
[1765143643617,8.24,134.5,134.48,8.14596116]
[1765143648341,18.59235862,134.51,134.49,0.71]
[1765143648543,8.24,134.5,134.47,10.48902111]
[1765143648741,8.24,134.5,134.48,0.71]
[1765143650117,8.24,134.5,134.48,8.14601488]
[1765143651141,8.24,134.5,134.49,0.7]
[1765143651452,8.24,134.5,134.47,10.47902111]
[1765143651645,8.24,134.5,134.48,0.7]
[1765143652848,8.24,134.5,134.48,8.13586722]
[1765143654837,8.24,134.5,134.48,0.7]
[1765143656155,0.71,134.49,134.45,8.13726284]
[1765143656362,8.22,134.48,134.45,8.13726284]
[1765143656533,19.30235862,134.49,134.46,10.45957419]
[1765143656728,16.308864,134.51,134.47,2.34241816]
[1765143656935,8.22,134.5,134.47,3.02241816]
[1765143657134,8.22,134.5,134.48,3.02241816]
[1765143657645,8.22,134.5,134.49,0.68]
[1765143658954,8.22,134.5,134.48,7.43581646]
[1765143659130,15.65581646,134.5,134.48,8.11581646]
[1765143659332,16.36581646,134.5,134.48,7.43581646]
[1765143659545,15.65581646,134.5,134.48,8.11581646]
[1765143659741,0.71,134.49,134.45,0.68]
[1765143660058,8.24,134.48,134.45,0.68]
[1765143660239,8.24,134.48,134.45,8.11761334]
[1765143660562,8.95,134.48,134.45,8.11761334]
[1765143661255,18.58681373,134.47,134.45,8.11761334]
[1765143662360,18.58681373,134.47,134.45,7.43761334]
[1765143662557,18.58681373,134.47,134.45,8.11761334]
[1765143663359,18.58681373,134.47,134.44,7.43826242]
[1765143663546,19.29681373,134.47,134.44,8.11826242]
[1765143663951,18.58681373,134.47,134.44,7.43826242]
[1765143664143,8.24,134.46,134.45,3.02241816]
[1765143664942,18.58681373,134.49,134.45,3.02241816]
[1765143665147,8.24,134.47,134.46,3.02241816]
[1765143665649,8.24,134.47,134.46,2.34241816]
[1765143666680,8.24,134.47,134.46,9.77957419]
[1765143666857,8.24,134.47,134.45,2.34241816]
[1765143667056,8.24,134.47,134.46,2.34241816]
[1765143667560,8.24,134.47,134.45,2.34241816]
[1765143667856,8.24,134.47,134.45,3.02241816]
[1765143668062,8.24,134.47,134.45,0.68]
[1765143668244,8.24,134.47,134.46,0.68]
[1765143668555,8.24,134.47,134.45,0.68]
[1765143668754,8.24,134.47,134.46,3.02241816]
[1765143668940,8.24,134.47,134.46,10.45957419]
[1765143669448,8.24,134.47,134.46,9.77957419]
[1765143669663,8.24,134.47,134.46,10.45957419]
[1765143670344,8.22,134.48,134.46,10.45957419]
[1765143671358,22.32890476,134.5,134.47,3.02241816]
[1765143671669,8.22,134.48,134.47,3.02241816]
[1765143672373,8.22,134.5,134.47,3.02241816]
[1765143672571,8.22,134.5,134.48,2.34241816]
[1765143673856,8.22,134.5,134.48,9.77808559]
[1765143674348,8.22,134.5,134.48,7.43566743]
[1765143674549,8.22,134.5,134.48,9.77808559]
[1765143674868,8.22,134.5,134.48,7.43566743]
[1765143677066,8.22,134.5,134.48,9.77808559]
[1765143677269,8.22,134.5,134.48,7.43566743]
[1765143677573,8.22,134.5,134.49,0.68]
[1765143677955,8.22,134.5,134.48,7.43566743]
[1765143678154,8.22,134.5,134.43,63.22993379]
[1765143678368,0.71,134.49,134.45,2.34241816]
[1765143678758,10.48683542,134.49,134.45,3.02241816]
[1765143679370,10.48683542,134.49,134.46,7.43715603]
[1765143679580,9.77683542,134.49,134.46,7.43715603]
[1765143679956,10.48683542,134.49,134.46,7.43715603]
[1765143680152,0.71,134.48,134.46,7.43715603]
[1765143680478,8.22,134.47,134.46,7.43715603]
[1765143680974,8.93,134.47,134.44,7.43790685]
[1765143681183,0.71,134.46,134.42,3.01241816]
[1765143681685,0.71,134.46,134.43,7.43852507]
[1765143686680,8.22,134.45,134.43,28.37798258]
[1765143686980,8.22,134.47,134.44,0.67]
[1765143687208,8.22,134.46,134.44,0.67]
[1765143687363,8.22,134.46,134.43,26.03556442]
[1765143687364,8.93,134.46,134.43,29.04798258]
[1765143687566,0.71,134.45,134.43,26.03556442]
[1765143687761,0.71,134.45,134.43,7.43852507]
[1765143688160,8.93,134.45,134.42,2.34241816]
[1765143688365,8.93,134.45,134.42,9.78162544]
[1765143688684,0.71,134.44,134.42,9.78162544]
[1765143688886,8.22,134.43,134.42,7.43920728]
[1765143689268,8.93,134.43,134.39,21.61444417]
[1765143689479,0.71,134.42,134.4,7.44012627]
[1765143691171,0.71,134.42,134.4,9.78254443]
[1765143691881,0.71,134.42,134.4,7.44012627]
[1765143692580,0.71,134.42,134.38,9.47994492]
[1765143692884,0.71,134.42,134.39,2.34241816]
[1765143693186,0.71,134.42,134.39,3.01241816]
[1765143693564,0.71,134.42,134.4,7.44047619]
[1765143693766,8.22,134.41,134.4,7.44047619]
[1765143694680,8.93,134.41,134.38,18.60263564]
[1765143694886,8.93,134.41,134.38,21.6150538]
[1765143695670,8.93,134.41,134.38,29.05663736]
[1765143695876,0.71,134.4,134.38,7.44158356]
[1765143696663,16.36909378,134.4,134.38,7.44158356]
[1765143697670,16.36909378,134.4,134.34,0.77]
[1765143697671,0.71,134.39,134.34,0.77]
[1765143697863,8.15102983,134.39,134.34,0.1]
[1765143698067,8.22,134.38,134.35,2.34241816]
[1765143698390,17.73994492,134.38,134.34,3.11241816]
[1765143698894,8.22,134.37,134.34,3.11241816]
[1765143699265,8.93,134.37,134.35,7.44324525]
[1765143700076,8.22,134.37,134.35,7.44324525]
[1765143700282,8.22,134.37,134.36,3.01241816]
[1765143701495,8.22,134.37,134.36,10.45510943]
[1765143701995,8.22,134.38,134.36,10.45510943]
[1765143703387,8.22,134.38,134.37,10.45455554]
[1765143704394,8.22,134.38,134.37,7.44213738]
[1765143706302,8.22,134.38,134.37,8.11213738]
[1765143706798,8.22,134.38,134.37,7.44213738]
[1765143711898,8.22,134.38,134.37,11.10802249]
[1765143712111,7.44324525,134.4,134.37,30.38336594]
[1765143712309,0.71,134.44,134.39,3.66588511]
[1765143712480,8.93,134.43,134.4,3.66588511]
[1765143712814,8.93,134.43,134.39,3.66588511]
[1765143712984,0.71,134.42,134.39,3.66588511]
[1765143713190,0.71,134.42,134.39,4.33588511]
[1765143714005,0.71,134.42,134.4,7.44047619]
[1765143714193,8.93,134.42,134.4,7.44047619]
[1765143714581,8.93,134.42,134.39,22.93836341]
[1765143714582,0.71,134.41,134.39,7.44102792]
[1765143715106,0.71,134.41,134.39,11.10691303]
[1765143715294,8.22,134.41,134.39,11.10691303]
[1765143715512,8.22,134.41,134.39,7.44102792]
[1765143715513,8.93,134.41,134.39,7.44102792]
[1765143715807,8.93,134.41,134.39,3.66588511]
[1765143716009,0.71,134.4,134.35,0.67]
[1765143716199,0.71,134.4,134.35,4.33588511]
[1765143716392,23.05220815,134.4,134.35,4.33588511]
[1765143716795,0.72,134.39,134.35,4.33588511]
[1765143717110,8.22,134.38,134.36,7.44269127]
[1765143717608,8.22,134.38,134.36,8.14269127]
[1765143718382,8.94,134.38,134.36,7.44269127]
[1765143718711,8.94,134.38,134.36,11.10857638]
[1765143719298,8.22,134.38,134.36,11.10857638]
[1765143719499,8.94,134.38,134.36,11.10857638]
[1765143720013,8.22,134.38,134.36,11.10857638]
[1765143720210,19.42909741,134.41,134.37,4.36588511]
[1765143720382,8.22,134.39,134.37,4.36588511]
[1765143721085,8.22,134.39,134.37,3.66588511]
[1765143721488,16.308864,134.42,134.38,4.36588511]
[1765143721826,8.94,134.41,134.38,4.36588511]
[1765143722121,8.94,134.41,134.38,3.66588511]
[1765143722319,8.94,134.41,134.38,11.10695333]
[1765143722506,8.22,134.41,134.38,11.10695333]
[1765143722818,0.72,134.4,134.38,11.10695333]
[1765143723483,0.72,134.4,134.38,7.44106822]
[1765143724302,0.72,134.4,134.37,7.44213738]
[1765143724486,11.82648558,134.4,134.34,22.3747255]
[1765143724688,3.66588511,134.39,134.34,7.54346451]
[1765143724914,8.22,134.38,134.34,7.54346451]
[1765143725112,8.94,134.38,134.34,7.54346451]
[1765143725412,0.72,134.37,134.34,7.54346451]
[1765143725795,0.72,134.37,134.34,0.1]
[1765143726826,3.66588511,134.35,134.3,7.44566679]
[1765143727110,3.66588511,134.31,134.23,0.8]
[1765143727329,3.66588511,134.28,134.23,0.1]
[1765143727633,8.22,134.27,134.24,7.44918246]
[1765143727803,0.72,134.28,134.24,11.81506757]
[1765143728119,8.22,134.26,134.24,30.43842871]
[1765143728289,8.94,134.27,134.24,8.14918246]
[1765143728490,8.94,134.27,134.24,26.7725436]
[1765143728809,8.22,134.27,134.24,26.0725436]
[1765143729006,0.72,134.26,134.24,7.44918246]
[1765143729193,0.72,134.26,134.23,7.54971958]
[1765143729399,16.308864,134.24,134.18,3.34990167]
[1765143729733,0.72,134.26,134.18,3.34990167]
[1765143729734,8.24,134.23,134.19,8.15194353]
[1765143729906,8.94,134.25,134.21,3.66588511]
[1765143730222,8.24,134.24,134.22,3.66588511]
[1765143730409,8.24,134.24,134.23,4.36588511]
[1765143730617,8.87194353,134.27,134.23,0.7]
[1765143730807,8.24,134.25,134.23,0.7]
[1765143731002,8.24,134.25,134.21,4.36588511]
[1765143731207,8.96,134.25,134.22,0.7]
[1765143731394,0.72,134.24,134.2,3.66588511]
[1765143731590,0.72,134.24,134.2,7.45146916]
[1765143731794,0.72,134.24,134.2,11.81735427]
[1765143733234,0.72,134.24,134.19,7.45204305]
[1765143733412,0.72,134.24,134.19,11.81792816]
[1765143734093,0.72,134.24,134.2,4.36588511]
[1765143734323,8.24,134.23,134.2,3.66588511]
[1765143734526,8.24,134.23,134.21,3.66588511]
[1765143734825,8.24,134.24,134.22,3.66588511]
[1765143734995,8.24,134.24,134.22,4.36588511]
[1765143735628,19.35313306,134.28,134.23,7.44989942]
[1765143735798,0.72,134.24,134.23,7.44989942]
[1765143736020,12.62588511,134.27,134.22,7.45039922]
[1765143736223,0.72,134.26,134.22,7.45039922]
[1765143737450,0.72,134.26,134.22,11.11628433]
[1765143737824,4.38588511,134.26,134.22,7.45039922]
[1765143738031,3.66588511,134.23,134.18,3.34990167]
[1765143738232,8.24,134.22,134.18,3.34990167]
[1765143738440,8.96,134.22,134.18,11.50244645]
[1765143738631,0.72,134.21,134.18,10.80244645]
[1765143739133,0.72,134.21,134.18,10.80246753]
[1765143739337,4.38588511,134.21,134.18,3.34990167]
[1765143739544,11.83689501,134.21,134.18,3.34990167]
[1765143739851,0.72,134.2,134.18,3.34990167]
[1765143740057,3.66588511,134.19,134.18,3.34990167]
[1765143740352,0.72,134.2,134.18,3.34990167]
[1765143740353,4.38588511,134.2,134.18,3.34990167]
[1765143740548,0.72,134.19,134.18,3.34990167]
[1765143741252,8.17212012,134.19,134.18,3.34990167]
[1765143741752,27.53115698,134.19,134.18,3.34990167]
[1765143742051,15.62527187,134.19,134.18,3.34990167]
[1765143742261,27.53115698,134.19,134.18,3.34990167]
[1765143742457,49.82734241,134.19,134.03,0.99999999]
[1765143742646,3.66588511,134.08,134.03,7.46091907]
[1765143742841,8.26,134.07,134.01,7.46173935]
[1765143743155,16.308864,134.05,134.0,10.0]
[1765143743450,3.66588511,134.01,134.0,10.0]
[1765143743652,3.66588511,134.01,134.0,9.37]
[1765143743653,11.96588511,134.01,134.0,9.37]
[1765143744247,3.66588511,134.01,134.0,9.37]
[1765143744454,8.3,134.01,134.0,9.37]
[1765143745442,18.08351235,134.01,134.0,9.37]
[1765143745831,8.3,134.01,134.0,9.37]
[1765143747936,18.08351235,134.01,134.0,9.37]
[1765143748344,25.54564204,134.01,134.0,9.37]
[1765143749541,27.8670247,134.01,134.0,9.37]
[1765143749742,18.08351235,134.01,134.0,9.37]
[1765143750655,27.8670247,134.01,134.0,9.37]
[1765143751166,18.08351235,134.01,134.0,9.37]
[1765143751741,8.3,134.01,134.0,9.37]
[1765143751940,18.08351235,134.01,134.0,9.37]
[1765143752560,8.32,134.03,134.0,10.05]
[1765143752865,18.10351235,134.03,134.0,10.05]
[1765143753249,9.78351235,134.03,134.01,0.68]
[1765143753448,9.78351235,134.1,134.02,9.78351235]
[1765143753657,9.78351235,134.1,134.04,9.78351235]
[1765143753658,28.42791977,134.1,134.04,9.78351235]
[1765143754047,18.64440742,134.1,134.05,17.92341537]
[1765143754366,18.10351235,134.11,134.06,9.78351235]
[1765143754576,8.32,134.11,134.06,0.68]
[1765143754749,18.10351235,134.11,134.07,0.68]
[1765143755281,8.32,134.11,134.07,0.68]
[1765143755476,18.10351235,134.11,134.07,0.68]
[1765143756271,9.78351235,134.1,134.07,0.68]
[1765143756958,25.56039241,134.11,134.07,0.68]
[1765143757160,15.77688006,134.11,134.07,0.68]
[1765143757472,9.78351235,134.1,134.05,8.13975362]
[1765143757647,8.32,134.11,134.04,29.11363852]
[1765143757852,17.23965374,134.12,134.04,19.33012617]
[1765143758067,17.23965374,134.12,134.06,7.45934656]
[1765143758267,9.78351235,134.11,134.06,7.45934656]
[1765143758455,9.78351235,134.11,134.07,0.68]
[1765143758861,9.78351235,134.12,134.07,0.68]
[1765143759870,9.78351235,134.12,134.08,7.45823389]
[1765143760371,47.95297582,134.13,134.09,0.68]
[1765143760968,39.63297582,134.13,134.09,0.68]
[1765143762374,9.78351235,134.11,134.06,0.68]
[1765143762560,9.78351235,134.11,134.07,7.45867056]
[1765143762761,9.78351235,134.11,134.07,8.13867056]
[1765143762960,9.78351235,134.11,134.07,7.45867056]
[1765143763263,9.78351235,134.1,134.05,8.13939048]
[1765143763456,32.18076495,134.1,134.05,8.13939048]
[1765143763778,9.78351235,134.09,134.06,0.68]
[1765143763976,8.32,134.09,134.05,7.45939048]
[1765143764271,8.32,134.09,134.03,28.43513818]
[1765143764272,9.78351235,134.07,134.02,0.68]
[1765143764479,18.10351235,134.06,134.02,8.14117731]
[1765143764859,18.10351235,134.06,134.01,7.46212859]
[1765143765058,9.78351235,134.04,134.0,17.51253266]
[1765143765655,9.78351235,134.04,134.01,0.68]
[1765143766379,17.24415381,134.04,134.0,16.83253266]
[1765143766566,9.78351235,134.02,134.0,9.37]
[1765143766877,6.32204446,134.02,134.0,9.37]
[1765143767472,33.30275087,134.03,134.0,9.37]
[1765143767678,40.7637744,134.03,134.0,9.37]
[1765143768276,6.32204446,134.01,134.0,9.37]
[1765143768663,22.63090846,134.01,134.0,9.37]
[1765143768961,23.13090846,134.01,134.0,9.37]
[1765143769487,29.45295292,134.01,134.0,1e-08]
[1765143769666,30.59303815,134.01,134.0,1e-08]
[1765143770192,36.91508261,134.01,134.0,1e-08]
[1765143770965,30.59303815,134.01,134.0,1e-08]
[1765143771394,36.91508261,134.01,134.0,1e-08]
[1765143773471,30.59303815,134.01,134.0,1e-08]
[1765143773892,55.57040683,134.01,133.92,0.7]
[1765143774086,6.32204446,133.98,133.92,0.7]
[1765143774306,14.64204446,133.97,133.92,0.7]
[1765143774874,7.46770218,133.96,133.92,0.7]
[1765143775195,15.78454074,133.97,133.92,8.16677257]
[1765143775393,23.25224292,133.97,133.92,8.16677257]
[1765143775702,23.25224292,133.97,133.93,0.7]
[1765143775889,15.78770218,133.97,133.93,0.7]
[1765143776196,8.32,133.97,133.93,0.7]
[1765143776978,8.32,133.97,133.94,7.46602956]
[1765143777366,8.32,133.97,133.95,0.72]
[1765143777566,15.78460453,133.97,133.95,0.72]
[1765143777767,8.32,133.97,133.95,0.72]
[1765143777978,14.64204446,133.97,133.95,0.72]
[1765143778183,8.32,133.97,133.95,0.72]
[1765143780277,6.32204446,134.02,133.95,14.50744908]
[1765143780481,14.64204446,134.02,133.95,14.50744908]
[1765143780665,14.64204446,134.02,133.96,7.04204446]
[1765143780870,8.32,134.02,133.97,6.32204446]
[1765143781069,8.32,134.02,133.98,0.72]
[1765143781290,8.32,134.02,133.99,7.46324352]
[1765143781492,8.32,134.02,133.98,8.18372055]
[1765143781702,8.32,134.02,133.99,0.72]
[1765143783193,8.32,134.02,133.99,8.18295921]
[1765143783396,8.32,134.02,133.99,0.72]
[1765143783696,8.32,134.02,133.99,8.18312444]
[1765143785197,8.32,134.02,133.99,0.72]
[1765143786993,8.32,134.02,133.99,8.18317415]
[1765143787189,8.32,134.02,134.0,0.72]
[1765143787497,16.308864,134.07,134.0,0.72]
[1765143787701,22.0814467,134.06,134.0,7.04204446]
[1765143787870,15.75940224,134.06,134.0,0.72]
[1765143788075,22.0814467,134.06,134.01,0.72]
[1765143788697,22.0814467,134.06,134.01,8.18178768]
[1765143788892,22.0814467,134.06,134.02,0.72]
[1765143789594,6.32204446,134.05,134.01,7.46178768]
[1765143789772,13.78210245,134.05,134.01,0.72]
[1765143790370,7.46005799,134.05,134.01,0.72]
[1765143790697,7.46005799,134.05,134.01,8.18181978]
[1765143791493,15.75950926,134.06,134.02,0.72]
[1765143791696,22.08155372,134.06,134.02,0.72]
[1765143792196,15.75950926,134.06,134.02,0.72]
[1765143792694,22.08155372,134.06,134.02,8.18151055]
[1765143793801,15.75950926,134.06,134.03,0.72]
[1765143793981,22.08155372,134.06,134.03,0.72]
[1765143794904,15.75950926,134.06,134.03,0.72]
[1765143795105,22.08155372,134.06,134.03,0.72]
[1765143795982,15.75950926,134.06,134.03,0.72]
[1765143796384,22.08155372,134.06,134.03,0.72]
[1765143796678,8.3,134.06,134.03,8.18079237]
[1765143797094,8.3,134.06,134.04,0.72]
[1765143798786,8.3,134.08,134.05,7.45990302]
[1765143799299,8.3,134.08,134.06,0.72]
[1765143799510,8.3,134.1,134.06,0.72]
[1765143800394,14.62204446,134.1,134.06,0.72]
[1765143800589,6.32204446,134.09,134.05,7.45990302]
[1765143800791,7.45792769,134.09,134.05,0.72]
[1765143800991,6.32204446,134.08,134.04,8.18029476]
[1765143801190,8.3,134.07,134.05,0.72]
[1765143804211,8.3,134.07,134.02,8.18157289]
[1765143804212,15.75881665,134.07,134.02,8.18157289]
[1765143804396,8.3,134.07,134.02,8.18157289]
[1765143804593,8.3,134.07,134.03,0.72]
[1765143805399,6.32204446,134.05,134.01,8.18212201]
[1765143805806,6.32204446,134.05,134.02,0.72]
[1765143806212,6.32204446,134.05,134.0,18.65612639]
[1765143806213,22.08264875,134.04,133.99,0.72]
[1765143806392,8.3,134.03,133.99,0.72]
[1765143808490,8.3,134.03,134.0,7.46268656]
[1765143808887,8.3,134.03,134.01,0.72]
[1765143810418,8.3,134.03,134.01,8.18182187]
[1765143810793,8.3,134.03,134.02,0.72]
[1765143813413,8.3,134.03,134.0,8.18256541]
[1765143814092,8.3,134.03,134.0,7.46256541]
[1765143814387,8.3,134.03,134.01,8.18208791]
[1765143814815,8.3,134.03,134.02,0.72]
[1765143816120,8.3,134.03,133.99,26.84057573]
[1765143816328,2.35910527,134.02,133.99,8.18324352]
[1765143816619,2.35910527,134.02,133.98,7.46358108]
[1765143816822,2.35910527,134.01,133.98,0.72]
[1765143817410,2.35910527,134.02,133.98,0.72]
[1765143817606,2.35910527,134.01,133.97,8.18414765]
[1765143817825,8.28,134.0,133.97,8.18435662]
[1765143818125,8.28,134.0,133.98,0.72]
[1765143820720,8.28,134.0,133.98,8.18378222]
[1765143821104,8.28,134.0,133.99,0.72]
[1765143821902,8.28,134.0,133.99,8.18324352]
[1765143828116,10.63910527,134.03,133.99,8.18324352]
[1765143828334,10.63910527,134.03,134.0,0.72]
[1765143828826,11.96757209,134.03,134.0,0.72]
[1765143830546,3.68757209,134.02,134.0,0.72]
[1765143830849,19.42875733,134.03,134.0,0.72]
[1765143831242,15.74118524,134.03,134.0,0.72]
[1765143831449,19.42875733,134.03,134.0,0.72]
[1765143833053,19.42875733,134.03,133.99,7.46324352]
[1765143833054,19.99643609,134.01,133.95,8.17507741]
[1765143833247,3.68757209,133.99,133.95,0.71]
[1765143834438,3.68757209,133.99,133.96,7.46481926]
[1765143834848,3.68757209,133.99,133.96,8.17481926]
[1765143836258,11.15089047,133.99,133.96,0.71]
[1765143837953,3.68757209,133.98,133.96,0.71]
[1765143838154,8.28,133.97,133.96,0.71]
[1765143838532,8.28,133.97,133.95,0.7]
[1765143839646,15.74453026,133.97,133.95,0.7]
[1765143840167,8.28,133.97,133.95,0.7]
[1765143841257,15.74437741,133.97,133.95,0.7]
[1765143842036,19.4319495,133.97,133.92,7.46696036]
[1765143842238,3.68757209,133.95,133.92,0.7]
[1765143842542,8.28,133.94,133.93,0.7]
[1765143843658,15.74602956,133.94,133.93,0.7]
[1765143844036,8.28,133.94,133.93,0.7]
[1765143844946,8.28,133.94,133.93,8.16658702]
[1765143845571,8.28,133.94,133.93,0.7]
[1765143852675,8.28,133.94,133.91,7.46750245]
[1765143852882,8.28,133.94,133.92,0.7]
[1765143856659,8.28,133.94,133.92,8.16713021]
[1765143857377,8.28,133.94,133.93,0.7]
[1765143857773,8.28,133.97,133.93,4.38757209]
[1765143858160,8.28,133.97,133.94,0.7]
[1765143858657,3.68757209,134.03,133.97,26.12525192]
[1765143858858,8.28,134.02,133.98,0.7]
[1765143859869,11.96757209,134.02,133.98,0.7]
[1765143860075,11.96757209,134.02,133.98,8.163735]
[1765143860594,11.96757209,134.02,133.99,0.7]
[1765143860595,8.28,134.02,133.99,0.7]
[1765143861790,8.28,134.02,133.99,8.16322461]
[1765143862968,8.28,134.02,134.0,0.66]
[1765143864671,11.96757209,134.02,134.0,0.66]
[1765143866177,8.28,134.02,134.0,0.66]
[1765143868706,3.68757209,134.01,133.96,0.66]
[1765143868877,3.68757209,133.99,133.96,0.66]
[1765143869076,8.28,133.98,133.96,0.66]
[1765143869278,11.96757209,133.98,133.94,0.66]
[1765143869476,11.96757209,133.98,133.95,0.66]
[1765143869686,19.43341766,133.98,133.95,0.66]
[1765143870505,26.89754642,133.98,133.95,0.66]
[1765143872101,3.68757209,133.97,133.93,0.66]
[1765143872298,3.68757209,133.96,133.93,0.66]
[1765143872484,8.28,133.95,133.93,0.66]
[1765143880219,8.28,133.95,133.92,7.46702066]
[1765143880220,11.96757209,133.95,133.91,7.46770218]
[1765143880424,11.96757209,133.95,133.92,0.66]
[1765143881200,11.96757209,133.95,133.92,8.12695189]
[1765143881618,11.96757209,133.95,133.93,0.66]
[1765143882008,8.28,133.95,133.93,0.66]
[1765143882403,3.68757209,133.94,133.91,8.12756408]
[1765143882701,3.68757209,133.94,133.92,0.66]
[1765143883520,3.68757209,133.94,133.9,7.46814905]
[1765143883521,11.15374002,133.94,133.9,7.46814905]
[1765143883727,11.15374002,133.94,133.91,0.66]
[1765143884826,18.62188907,133.94,133.91,0.66]
[1765143885207,11.15374002,133.94,133.91,0.66]
[1765143886305,18.62188907,133.94,133.91,0.66]
[1765143888226,3.68757209,133.93,133.91,0.66]
[1765143888404,8.28,133.92,133.91,0.66]
[1765143889727,8.28,133.92,133.87,22.36202554]
[1765143889924,3.68757209,133.9,133.89,0.66]
[1765143890721,2.36434321,133.9,133.89,0.66]
[1765143891027,2.36434321,133.91,133.89,0.66]
[1765143894820,18.11166686,133.92,133.89,0.66]
[1765143895142,8.28,133.92,133.89,8.12868448]
[1765143895319,8.28,133.91,133.89,8.12868448]
[1765143895522,8.28,133.91,133.9,0.66]
[1765143896717,8.28,133.91,133.9,8.12825989]
[1765143899455,8.28,133.93,133.9,8.12825989]
[1765143899658,8.28,133.93,133.91,0.69]
[1765143900330,8.28,133.95,133.91,3.05434321]
[1765143900536,15.59471925,133.94,133.91,0.69]
[1765143900834,15.59471925,133.94,133.92,0.69]
[1765143901235,2.36434321,134.0,133.93,2.36434321]
[1765143901553,15.59471925,133.99,133.96,9.8292581]
[1765143901734,2.36434321,134.03,133.97,2.36434321]
[1765143901935,8.28,134.02,133.98,2.36434321]
[1765143902128,30.68728983,134.02,133.98,3.05434321]
[1765143902333,30.68728983,134.02,133.96,26.12720213]
[1765143902334,30.68728983,134.02,133.99,0.69]
[1765143902643,8.28,134.02,134.0,2.36434321]
[1765143902845,8.28,134.02,134.01,0.69]
[1765143903045,10.64434321,134.02,133.96,28.49154534]